Cogmind - Beta 16.1 @@@ ROGUE MODE // 2026.02.14 @ 16:21:55 Player: Wyvern Result: Destroyed by 24-0R7(j) with Overtuned Pulse Rifle Performance ------------- Evolutions (0) 0 Regions Visited (4) 800 Robots Destroyed (14) 70 Value Destroyed (281) 281 Prototype IDs (6) 120 Alien Tech Used (0) 0 Bonus (800) 800 TOTAL SCORE: 2071 Bonus ------- Registered with UFD 300 Met Optimus in HQ 500 Cogmind --------- Core Integrity 0/250 Matter 294/300 Energy 18/100 System Corruption 1% Temperature Cool (86) Movement Walking (130) Location -7/Scraptown Parts ------- > --- POWER (1) -------- (None) > --- PROPULSION (2) --- Titanium Leg > --- UTILITY (2) ------ ECM Suite > --- WEAPON (2) ------- (None) > --- INVENTORY (5) ---- Light Deuterium Engine Overtuned Titanium Leg Improved Heat Sink Particle Cannon Flamer Peak State ------------ > --- POWER ------------ Ion Engine > --- PROPULSION ------- Aluminum Leg Aluminum Leg > --- UTILITY ---------- Small Storage Unit ECM Suite > --- WEAPON ----------- Particle Cannon Particle Cannon > --- INVENTORY -------- Light Ion Engine Light Ion Engine Hover Unit Flight Unit Flight Unit Improved Heat Sink Light Cannon Flamer [Rating: 10] Favorites ----------- Power Light Ion Engine Engine Light Ion Engine Propulsion Aluminum Leg Leg Aluminum Leg Flight Unit Flight Unit Utility Small Storage Unit Device ECM Suite Storage Small Storage Unit Processor Transport Network Coupler Weapon Particle Cannon Energy Gun Small Laser Energy Cannon Particle Cannon Ballistic Gun Light Assault Rifle Ballistic Cannon Light Cannon Special Weapon Flamer Build | -11 -10 -10 -7 -7 ------- Run | Yrd Mat Sub Rec Scr Slots Evolved . | . . . . . Power . | . . . . . Propulsion . | . . . . . Utility . | . . . . . Weapon . | . . . . . Parts Attached 23 | 7 8 . 5 3 Power 4 | 1 1 . 1 1 Engine 4 | 1 1 . 1 1 Core . | . . . . . Reactor . | . . . . . Propulsion 7 | 2 1 . 2 2 Treads . | . . . . . Leg 5 | 2 1 . . 2 Wheel . | . . . . . Hover . | . . . . . Flight 2 | . . . 2 . Utility 3 | 1 2 . . . Device 1 | . 1 . . . Storage 1 | 1 . . . . Processor 1 | . 1 . . . Hackware . | . . . . . Protection . | . . . . . Artifact . | . . . . . Weapon 9 | 3 4 . 2 . Energy Gun 4 | 2 2 . . . Energy Cannon 2 | . 2 . . . Ballistic Gun 1 | 1 . . . . Ballistic Cannon 1 | . . . 1 . Launcher . | . . . . . Special Weapon 1 | . . . 1 . Impact Weapon . | . . . . . Slashing Weapon . | . . . . . Piercing Weapon . | . . . . . Special Melee Weapon . | . . . . . Unidentified Prototypes . | . . . . . Parts Lost 7 | . 2 1 . 4 Power 2 | . 1 . . 1 Propulsion 3 | . . 1 . 2 Utility . | . . . . . Weapon 2 | . 1 . . 1 Highest Loss Streak 4 | . 2 1 . 4 To Critical Strikes . | . . . . . Average Backups 7 | . 6 8 6 7 Power 1 | . 1 2 2 1 Propulsion 2 | . 2 3 1 1 Utility 1 | . . 1 1 1 Weapon 2 | . 2 2 2 3 Tool/Special . | . . . . . Unused Backups 10 | . 1 4 . 5 Power 1 | . . . . 1 Propulsion 4 | . . 2 . 2 Utility 4 | . 1 1 . 2 Weapon 1 | . . 1 . . Tool/Special . | . . . . . Average Slot Usage (%) 88 | . 93 94 95 76 Engine 13 | . 13 14 14 13 Leg 14 | . 26 22 4 1 Flight 11 | . . . 19 26 Device 12 | . 9 14 14 14 Storage 13 | . 14 14 14 13 Energy Gun 4 | . 16 . . . Energy Cannon 11 | . 9 28 10 . Ballistic Cannon 2 | . . . 8 3 Special Weapon 1 | . . . 8 3 Peak Build Rating 10 | 6 9 10 10 10 Average Rating 7 | 4 7 9 9 6 On Entrance 6 | . 6 9 9 9 Avg Prop Armor Cover (%) . | . . . . . Naked Turns . | . . . . . Heaviest Build 20 | 10 20 20 20 15 Greatest Support 34 | 20 20 20 10 34 Greatest Overweight (x) 2 | 2 2 1 2 1 Average Overweight (x) . | . . . 1 . Largest Inventory Capacity 8 | 8 8 8 8 8 Average Capacity 7 | 7 8 8 8 7 Most Carried 8 | 2 8 8 8 8 Average Carried 7 | . 6 7 6 7 Final Capacity 8 | 8 8 8 8 5 Final Carried 8 | 1 8 8 6 5 Class Distribution -------------------- 100% | Mutant Dominant Class ---------------- Mutant | -10/Materials Mutant | -10/Subcaves Mutant | -7/Recycling Mutant | -7/Scraptown Resources | -11 -10 -10 -7 -7 ----------- Run | Yrd Mat Sub Rec Scr Matter Collected 561 | 270 163 . . 128 Remotely . | . . . . . Salvage Created 528 | 96 275 157 . . Parts 18 | . 14 4 . . Haulers Intercepted 2 | . 2 . . . Recyclers Shooed 1 | . 1 . . . Parts Field Recycled . | . . . . . Retrieved Matter . | . . . . . Parts Self-Destructed 15 | . . 15 . . Prevented . | . . . . . Parts Restored . | . . . . . Kills | -11 -10 -10 -7 -7 ------- Run | Yrd Mat Sub Rec Scr Combat Hostiles Destroyed 8 | . 3 5 . . Guns 3 | . 3 . . . Cannons 4 | . . 4 . . Classes Destroyed 8 | 1 4 3 . . Worker 1 | . 1 . . . Hauler 2 | . 2 . . . Recycler 1 | 1 . . . . Turret 1 | . . 1 . . Watcher 1 | . 1 . . . Swarmer 3 | . . 3 . . Grunt 4 | . 3 1 . . Sentry 1 | . . 1 . . Best Kill Streak 3 | 1 2 3 . . Combat Bots Only 3 | . 2 3 . . Max Kills in Single Turn 1 | 1 1 1 . . Gunslinging . | . . . . . Exploded . | . . . . . Melee . | . . . . . Uniques/NPCs Destroyed . | . . . . . Combat | -11 -10 -10 -7 -7 -------- Run | Yrd Mat Sub Rec Scr Hostile Shots Fired 150 | . 22 80 . 48 Missed 58 | . 7 34 . 17 Hits 92 | . 15 46 . 31 Projectile 92 | . 15 46 . 31 Damage Taken 1150 | . 188 355 . 607 Core 269 | . . 66 . 203 Absorbed by Shields . | . . . . . Regen/Repaired (Parts) 81 | . . . . 81 Core Remaining (%) 100 | 100 . . . . Volleys Fired 52 | 7 23 16 . 6 Largest 2 | 2 2 2 . 2 Hottest 136 | 80 136 136 . 130 Shots Fired 98 | 14 45 32 . 7 Gun 55 | 14 41 . . . Cannon 42 | . 4 32 . 6 Launcher . | . . . . . Special 1 | . . . . 1 Kinetic 6 | . . . . 6 Thermal 85 | 14 38 32 . 1 Explosive . | . . . . . Electromagnetic 7 | . 7 . . . Robot Hit Streak 11 | 9 11 4 . 6 Robot Miss Streak 9 | 3 3 9 . 3 Penetration Max . | . . . . . Secondary Targets . | . . . . . Shots Hit Robots 52 | 10 29 9 . 4 Core Hits 24 | 2 13 6 . 3 Critical Kills 1 | . . 1 . . Critical Parts Destroyed . | . . . . . Critical Strikes 1 | . . 1 . . Meltdown 1 | . . 1 . . Melee Attacks . | . . . . . Impact . | . . . . . Slashing . | . . . . . Piercing . | . . . . . Sneak Attacks . | . . . . . Combat Hostiles . | . . . . . Follow-up Attacks . | . . . . . Damage Inflicted 773 | 110 395 184 . 84 Guns 464 | 110 354 . . . Cannons 301 | . 41 184 . 76 Explosions . | . . . . . Melee . | . . . . . Ramming . | . . . . . Kinetic 76 | . . . . 76 Thermal 623 | 110 321 184 . 8 Explosive . | . . . . . Electromagnetic 74 | . 74 . . . Impact . | . . . . . Slashing . | . . . . . Piercing . | . . . . . Highest Corruption 1 | . . . . 1 Average Corruption 1 | . . . . 1 Corruption Purged . | . . . . . Corruption Blocked . | . . . . . Effects 1 | . . . . 1 Data Loss (minor) 1 | . . . . 1 Overload Shots . | . . . . . Overflow Damage 4 | . . 1 . 3 Projectiles 4 | . . 1 . 3 Explosions . | . . . . . Melee . | . . . . . Knockbacks . | . . . . . Impact . | . . . . . Kinetic . | . . . . . Secondary . | . . . . . Self-Inflicted Damage . | . . . . . Shots . | . . . . . Rammed . | . . . . . Targets Rammed . | . . . . . Kicked . | . . . . . Crushed . | . . . . . Highest Temperature 150 | 126 150 63 . 121 Average Temperature 42 | 65 42 23 . 64 Received Heat Transfer 585 | . 105 180 . 300 Siege Activations . | . . . . . Martial Activations . | . . . . . Shielding Activations . | . . . . . Robots Disrupted . | . . . . . Combat Hostiles . | . . . . . Robots Corrupted . | . . . . . Combat Hostiles . | . . . . . Parts Fried . | . . . . . Impact Corruptions . | . . . . . Robots Melted 1 | . . 1 . . Combat Hostiles 1 | . . 1 . . Parts Melted 4 | . 1 3 . . Heat Transferred 1387 | 250 724 333 . 80 Parts Sabotaged . | . . . . . Parts Stolen . | . . . . . Parts Stripped . | . . . . . Power Chain Reactions . | . . . . . Alert | -11 -10 -10 -7 -7 ------- Run | Yrd Mat Sub Rec Scr Maximum Alert Level . | . . . . . Low Security (%) 100 | 100 100 . 100 . Level 1 . | . . . . . Level 2 . | . . . . . Level 3 . | . . . . . Level 4 . | . . . . . Level 5 . | . . . . . High Security . | . . . . . Max Security . | . . . . . Peak Influence 50 | 5 50 . . . Initial . | . . . . . Average 5 | . 7 . . . Influence Increases 261 | 5 126 130 . . Destroy 0b10 Robot/C 180 | . 60 120 . . Destroy 0b10 Robot/NC 25 | 5 20 . . . Destroy Leader 36 | . 26 10 . . Successful Hack 5 | . 5 . . . Lose Combat Pursuer 15 | . 15 . . . Influence Decreases 261 | 5 126 130 . . Time Decay 261 | 5 126 130 . . Squads Dispatched 1 | . 1 . . . Investigation . | . . . . . Extermination . | . . . . . Reinforcement 1 | . 1 . . . Assault . | . . . . . Garrison . | . . . . . Intercept . | . . . . . Searches Triggered . | . . . . . Construction Impeded . | . . . . . Haulers Reinforced . | . . . . . Active Scanning Responses . | . . . . . Cargo Convoy Interrupts . | . . . . . Stealth | -11 -10 -10 -7 -7 --------- Run | Yrd Mat Sub Rec Scr Distress Signals 2 | . 2 . . . Communications Jammed . | . . . . . Distress Signals . | . . . . . Times Spotted 67 | . 9 45 . 13 Peak Tracking Total 7 | . 4 6 . 7 Tactical Retreats 9 | . 3 6 . . ECM-based Alert Blocks 45 | . 3 42 . . Traps | -11 -10 -10 -7 -7 ------- Run | Yrd Mat Sub Rec Scr Traps Triggered 3 | . 3 . . . Indirectly . | . . . . . Trap Hack Attempts . | . . . . . Triggered . | . . . . . Disarmed . | . . . . . Reprogrammed . | . . . . . Reused . | . . . . . Traps Extracted . | . . . . . Installed . | . . . . . Triggered . | . . . . . Machines | -11 -10 -10 -7 -7 ---------- Run | Yrd Mat Sub Rec Scr Machines Disabled 1 | . . 1 . . Max in Single Turn 1 | . . 1 . . Machines Repaired . | . . . . . Machines Dismantled . | . . . . . Machines Sabotaged . | . . . . . Overloaded Fab Kills . | . . . . . Hacking | -11 -10 -10 -7 -7 --------- Run | Yrd Mat Sub Rec Scr Machines Accessed 13 | . 5 . 4 4 Terminals 4 | . 3 . 1 . Fabricators . | . . . . . Repair Stations . | . . . . . Recycling Units 3 | . 2 . 1 . Scanalyzers . | . . . . . Garrison Access . | . . . . . Total Hacks 54 | . 11 . 20 23 Successful 42 | . 4 . 15 23 Failed 12 | . 7 . 5 . Catastrophic 2 | . 1 . 1 . Database Lockouts . | . . . . . Manual . | . . . . . Terminals 9 | . 7 . 2 . Fabricators . | . . . . . Repair Stations . | . . . . . Recycling Units 11 | . 4 . 7 . Scanalyzers . | . . . . . Garrison Access . | . . . . . Terminal Hacks 35 | . 1 . 11 23 Record 34 | . . . 11 23 Hauler Manifests 1 | . 1 . . . Fabricator Hacks . | . . . . . Repair Station Hacks . | . . . . . Recycling Unit Hacks 7 | . 3 . 4 . Recycle Component 1 | . . . 1 . Process 1 | . . . 1 . Report Inventory 2 | . 1 . 1 . Retrieve Matter 1 | . . . 1 . Retrieve Components 2 | . 2 . . . Scanalyzer . | . . . . . Garrison Access Hacks . | . . . . . Unauthorized Hacks . | . . . . . Terminals . | . . . . . Fabricators . | . . . . . Repair Stations . | . . . . . Recycling Units . | . . . . . Scanalyzers . | . . . . . Garrison Access . | . . . . . Data Cores Recovered . | . . . . . Used . | . . . . . Hacking Detections 5 | . 3 . 2 . Full Trace Events 1 | . . . 1 . Feedback Events . | . . . . . Feedback Blocked . | . . . . . Robot Schematics Acquired . | . . . . . Robots Built . | . . . . . Authchips . | . . . . . Time . | . . . . . Total Robot Build Rating . | . . . . . Part Schematics Acquired . | . . . . . Parts Built . | . . . . . Authchips . | . . . . . Time . | . . . . . Total Part Build Rating . | . . . . . Part Studies Acquired . | . . . . . Parts Repaired . | . . . . . Time . | . . . . . Parts Recycled 1 | . . . 1 . Recycled Matter . | . . . . . Retrieved Matter . | . . . . . Retrieved Components 10 | . 10 . . . Parts Scanalyzed . | . . . . . Part Schematics Acquired . | . . . . . Parts Damaged . | . . . . . Bothacking | -11 -10 -10 -7 -7 ------------ Run | Yrd Mat Sub Rec Scr Used RIF Installer . | . . . . . Robots Hacked . | . . . . . Non-combat . | . . . . . Combat . | . . . . . Robot Hacks Applied . | . . . . . Relay Couplers Released . | . . . . . Fabnet Peak Effective % . | . . . . . Robots Rewired . | . . . . . Allies Hacked . | . . . . . Hacks Repelled . | . . . . . Allies | -11 -10 -10 -7 -7 -------- Run | Yrd Mat Sub Rec Scr Total Allies . | . . . . . Largest Group . | . . . . . Highest-Rated Group . | . . . . . Highest-Rated Ally . | . . . . . Total Orders . | . . . . . Ally Attacks . | . . . . . Total Damage . | . . . . . Kills . | . . . . . Allies Corrupted . | . . . . . Allies Melted 1 | . . . . 1 Intel | -11 -10 -10 -7 -7 ------- Run | Yrd Mat Sub Rec Scr Active Infowar (turns) 2472 | . 536 785 212 939 T.N.C. 106 | . 106 . . . ECM 2366 | . 430 785 212 939 Robot Analysis Total . | . . . . . Derelict Logs Recovered 1 | . . 1 . . Drone Launches . | . . . . . Drone Recoveries . | . . . . . Exploration | -11 -10 -10 -7 -7 ------------- Run | Yrd Mat Sub Rec Scr Turns Passed 2670 | 81 653 785 212 939 Spaces Moved 1974 | 41 448 521 152 812 Core 15 | 9 6 . . . Treads . | . . . . . Legs 1056 | 32 442 521 30 31 Wheels . | . . . . . Hover . | . . . . . Flight 903 | . . . 122 781 Fastest Speed 37 | 50 100 120 117 37 Average Speed 121 | 113 120 139 134 109 Slowest Speed 197 | 150 150 190 197 130 Overloaded Moves . | . . . . . Propulsion Burnouts . | . . . . . Robots Hopped . | . . . . . Potential Cave-ins . | . . . . . Cave-ins Triggered . | . . . . . Exploration Rate (%) 36 | 3 72 29 30 47 Regions Visited 4 Branch Regions 3 Pre-discovered Areas . | . . . . . Known Exits Taken . | . . . . . Unknown Exits Taken 4 | 1 1 1 1 . Scrap Searched 1 | . . . . 1 Spaces Dug . | . . . . . Terrain Destroyed . | . . . . . Melee . | . . . . . Projectile . | . . . . . AOE . | . . . . . Terrain Rammed . | . . . . . Walls Destroyed . | . . . . . Machines Disabled . | . . . . . Actions | -11 -10 -10 -7 -7 --------- Run | Yrd Mat Sub Rec Scr Total 2146 | 61 520 550 158 857 Wait 31 | . 10 6 2 13 Move 1970 | 40 447 520 151 812 Hop . | . . . . . Pick Up 35 | 7 18 4 . 6 Fast Attach 7 | . 7 . . . Attach 18 | 6 7 . 1 4 Detach 4 | . . . . 4 Swap 10 | 1 1 . 4 4 Drop 19 | . 7 4 . 8 Fire 52 | 7 23 16 . 6 Melee . | . . . . . Ram . | . . . . . Kick . | . . . . . Crush . | . . . . . Escape Stasis . | . . . . . Rewire . | . . . . . Trap . | . . . . . Miscellaneous . | . . . . . Route ------- -11/Scrapyard -10/Materials (discovered 2 exits: [*Mat] / [*Sub]) -10/Subcaves (discovered 2 exits: [*Mat] / *Rec) -7/Recycling -7/Scraptown History --------- Turn | Location | Event 17 | -11/Scrapyard | Discovered new exit (range 15) 82 | -11/Scrapyard | Entered Materials 83 | -10/Materials | Met a group of wandering Federalists 326 | -10/Materials | Build established: Mutant 602 | -10/Materials | Discovered new exit (range 16) 725 | -10/Materials | Discovered new exit (range 9) 735 | -10/Materials | Entered Subcaves 736 | -10/Subcaves | Continued accompanying wandering Federalists (5) 736 | -10/Subcaves | Approached by a straggling Scientist 737 | -10/Subcaves | Shifting Twisted Machinery released Sub. Laser 744 | -10/Subcaves | Shifting Twisted Machinery released Flamer 753 | -10/Subcaves | Discovered new exit (range 13) 812 | -10/Subcaves | Lost 5 allies 1116 | -10/Subcaves | A swath of the cavern ceiling suddenly collapsed 1175 | -10/Subcaves | Learned Materials emergency access door positions 1285 | -10/Subcaves | Discovered new exit (range 8) 1520 | -10/Subcaves | Entered Recycling 1521 | -7/Recycling | Met a Zionite searching for Scraptown 1688 | -7/Recycling | Scanned before Scraplab entrance 1716 | -7/Recycling | Discovered new exit (range 3) 1732 | -7/Recycling | Entered Scraptown 1889 | -7/Scraptown | Visited Shadow of the Wyrm 1928 | -7/Scraptown | Visited CR-KLE's Repair Center 1936 | -7/Scraptown | CR-KLE repaired 4 parts 1955 | -7/Scraptown | Visited Fellowship of the Rings 1989 | -7/Scraptown | Visited Symbiants 2036 | -7/Scraptown | Visited UFD Registry 2036 | -7/Scraptown | Registered with UFD as "Carbondrive" 2075 | -7/Scraptown | Visited Junk Repository 2116 | -7/Scraptown | Visited DA-N13 Charitable Foundation 2156 | -7/Scraptown | Visited LU-1G1's Boring Crew 2232 | -7/Scraptown | Visited Supply Room 2321 | -7/Scraptown | Visited Infowarlord's Domain 2359 | -7/Scraptown | Visited Science Testing Area 2387 | -7/Scraptown | Visited Junk Repository 2436 | -7/Scraptown | Visited Derelict Rescue Squad 2536 | -7/Scraptown | Met Optimus 2536 | -7/Scraptown | Accepted into 0bPrime 2613 | -7/Scraptown | Civil war broke out across Scraptown 2619 | -7/Scraptown | Visited A0-MCA Data Center 2659 | -7/Scraptown | Core integrity fell below 50% 2670 | -7/Scraptown | Core integrity fell below 20% 2671 | -7/Scraptown | Destroyed by 24-0R7(j) with Overtuned Pulse Rifle Last Messages --------------- Optimus Imp. VSS Leg ripped off. Slug penetrates 69-O61(r). 69-O61(r) destroyed. WO-ZTA(g) destroyed. Dropped Lgt. Ion Engine. Acquired Lgt. Deuterium Engine. Acquired 70 matter. BU-R0T(j) destroyed. Slug penetrates GV-9V7(E). Machine disabled. Acquired 8 matter. System corrupted: Component data lost. CZ-MFO(E) destroyed. Flight Unit destroyed. Lgt. Ion Engine destroyed. Lgt. Cannon destroyed. OY-C7A(E) cannibalizes Bolt Gun to repair Ovr. Barrage Gun. YZ-9ST(j) heat damages Ovr. Titanium Leg. Acquired Ovr. Titanium Leg. Map ----- +----------------------------------------------------+ | ?????????????????????????????????????????????????? | | ?????????????????????????????????????????????????? | | ?????????????????????????????????????????????????? | | ##########???????????????????????????????????????? | | #""""""""#????????????? ????????????????????????? | | #" &&&" "#????????????? ????????????????????????? | | #" "#????????????# ????????????????????????? | | #"" ""#????????????# #???????????????????????? | | #" "#????????????# #" ????" #?????????????? | | #"" !*""#??########### # "??""" #?????????????? | | #" =&="#??#|]# !#]!# # "#? #?????????????? | | #"" *%""#??#! #!= #! # # "##" "??????????????? | | # #??# # # # # """ ???????????????? | | # #??# # # ?????????????????? | | # [ #??# # #""""???????????????????? | | #####%####??##### ##### ## #????????????????????? | | #####[########### #####E ## ##???#######?????????? | | """"" """"""""""" """"" "" "#??? #?????????? | | == = ! % #?? #?????????? | | %=%= "#?? #?????????? | | = "#? #?????????? | | ## #?????????? | | * = #?????????? | | """" " "" """"""""""""" [%"## #?????????? | | """" """"" """"""""""""=! ="#? #?????????? | | ### ################""[ @ "#?? #?????????? | | ##????????#" !x "#??########?????????? | | X"#????????#""*!! "#???????????????????? | | "" "" ##????????#""% [[ "###########?????????? | | "" "" X"#??????###""=%! "## !!!!! #?????????? | | " " ######### #""!*= "## #?????????? | | "" #?????????? | | "" j ## #?????????? | | " " ######### #"" ## !!!!! #?????????? | | "" "" ""#??????###"" "###########?????????? | | "" "" ##????????#"" #########???????????? | | X"#????????#" l ##""!!!!#???????????? | | ##????????#"" j "## ""!#???????????? | | ### ################""jj j"## ""!#???????????? | | """""""""""""""""""""""%! "## !#???????????? | | """""""""""""""""""""""! % %[= " "#???????????? | | "## "" ="#???????????? | | % % "##]! ""#???????????? | | ! *=! "## "[[[#???????????? | | %! =%[=!! #########???????????? | | %= ![*%[ #??????????????????? | | """"""" """""""""""["""" " ##??????????????????? | | ####### ########### ###### #???????????????????? | | # #???# ## #???????????????????? | | # #???# # # ## #???????????????????? | +----------------------------------------------------+ Best States ------------- Heat Dissipation 25 Energy Generation 10 Energy Capacity 250 Matter Stores 300 Matter Capacity 300 Sight Range 16 Terrain Scan Density 10 ECM Strength 1 Evasion (%) 62 Item Schematics ----------------- None Robot Schematics ------------------ None Fabricated ------------ Nothing Repaired ---------- Nothing Studied --------- None Alien Tech Used ----------------- None Achievements -------------- Civilization 2243 It's Just You Librarian Link The Feds Strength In Numbers You May Approach The Wall Challenges ------------ None Game ------ Seed BehemothTargetFalx Manual? 0 Play Time 00:39:44 Cumulative 5.8 hours Start 2026.02.14 @ 15:43:17 End 2026.02.14 @ 16:21:55 Sessions 1 Manual Loads 0 Difficulty Rogue Special Mode None Game No. 9 Rogue 9 Adventurer 0 Explorer 0 Win Type - Total 0 Types 0/0/0/0/0/0/0/0/0/0 Lore% 8 Gallery% 9 Achievement% 11 Wizard Run 0 Options --------- Layout 1 ASCII 0 Keyboard 0 Movement Mouse Keybinds 0 Fullscreen 1 Font 32/SmallcapsGlow Map View 50x35 Zoom Use 0% Tactical HUD 0 Map Filters NONE Filters NONE Steam 0 RUN: 268f77aa-824d-4a93-84e4-f147190cd5d9